[Event "NJSK 2018 Jeugd C"]
[Site "Assen, Netherlands"]
[Date "2018.05.01"]
[Round "3.7"]
[White "Brandsma, Romayn"]
[Black "Bartels, Vladimir"]
[Result "1/2-1/2"]
[TimeControl "40/90m+30sec/move"]
[WhiteElo "1715"]
[BlackElo "1757"]

1. e4 {[%clk 01:30:58]} {[%emt 00:00:02]} e5 {[%clk 01:30:57]} {[%emt
00:00:04]} 2. Nf3 {[%clk 01:31:22]} {[%emt 00:00:05]} Nc6 {[%clk 01:31:22]}
{[%emt 00:00:05]} 3. Bc4 {[%clk 01:31:45]} {[%emt 00:00:06]} Bc5 {[%clk
01:31:48]} {[%emt 00:00:04]} 4. Nc3 {[%clk 01:32:08]} {[%emt 00:00:08]} Nf6
{[%clk 01:32:05]} {[%emt 00:00:13]} 5. d3 {[%clk 01:32:31]} {[%emt 00:00:06]}
O-O {[%clk 01:32:03]} {[%emt 00:00:32]} 6. h3 {[%clk 01:31:59]} {[%emt
00:01:02]} Be7 {[%clk 01:26:43]} {[%emt 00:05:50]} 7. O-O {[%clk 01:30:36]}
{[%emt 00:01:53]} d6 {[%clk 01:26:41]} {[%emt 00:00:32]} 8. Bb3 {[%clk
01:28:01]} {[%emt 00:03:05]} h6 {[%clk 01:18:52]} {[%emt 00:08:20]} 9. Be3
{[%clk 01:20:15]} {[%emt 00:08:14]} Be6 {[%clk 01:17:06]} {[%emt 00:02:17]} 10.
d4 {[%clk 01:19:34]} {[%emt 00:01:11]} exd4 {[%clk 01:13:37]} {[%emt 00:03:59]}
11. Nxd4 {[%clk 01:19:32]} {[%emt 00:00:32]} Nxd4 {[%clk 01:10:28]} {[%emt
00:03:39]} 12. Bxd4 {[%clk 01:19:03]} {[%emt 00:00:58]} c5 {[%clk 01:09:10]}
{[%emt 00:01:48]} 13. Bxf6 {[%clk 01:18:20]} {[%emt 00:01:13]} Bxf6 {[%clk
01:09:34]} {[%emt 00:00:06]} 14. Bd5 {[%clk 01:18:43]} {[%emt 00:00:06]} Rb8
{[%clk 01:05:01]} {[%emt 00:05:03]} 15. a4 {[%clk 01:17:01]} {[%emt 00:02:13]}
a6 {[%clk 00:55:05]} {[%emt 00:10:26]} 16. a5 {[%clk 01:17:12]} {[%emt
00:00:18]} Bxc3 {[%clk 00:47:30]} {[%emt 00:08:05]} 17. bxc3 {[%clk 01:16:17]}
{[%emt 00:01:24]} Re8 {[%clk 00:45:28]} {[%emt 00:02:33]} 18. Qd3 {[%clk
01:13:31]} {[%emt 00:03:15]} Bxd5 {[%clk 00:45:18]} {[%emt 00:00:42]} 19. exd5
{[%clk 01:13:21]} {[%emt 00:00:39]} Qg5 {[%clk 00:43:51]} {[%emt 00:01:58]} 20.
Rae1 {[%clk 01:07:07]} {[%emt 00:06:43]} Re7 {[%clk 00:41:42]} {[%emt
00:02:39]} 21. Re2 {[%clk 01:03:47]} {[%emt 00:03:50]} Rbe8 {[%clk 00:39:50]}
{[%emt 00:02:22]} 22. Rfe1 {[%clk 01:03:55]} {[%emt 00:00:21]} Re5 {[%clk
00:28:17]} {[%emt 00:12:04]} 23. Qf3 {[%clk 00:53:06]} {[%emt 00:11:18]} Rxe2
{[%clk 00:27:37]} {[%emt 00:01:11]} 24. Rxe2 {[%clk 00:53:28]} {[%emt
00:00:08]} Rxe2 {[%clk 00:28:04]} {[%emt 00:00:03]} 25. Qxe2 {[%clk 00:53:52]}
{[%emt 00:00:07]} Qc1+ {[%clk 00:28:29]} {[%emt 00:00:04]} 26. Kh2 {[%clk
00:54:10]} {[%emt 00:00:11]} Kf8 {[%clk 00:28:24]} {[%emt 00:00:35]} 27. Qg4
{[%clk 00:51:56]} {[%emt 00:02:41]} g5 {[%clk 00:26:22]} {[%emt 00:02:35]} 28.
Qf5 {[%clk 00:47:23]} {[%emt 00:05:02]} Qf4 {[%clk 00:18:08]} {[%emt 00:08:45]}
29. Qxf4 {[%clk 00:47:42]} {[%emt 00:00:11]} gxf4 {[%clk 00:18:35]} {[%emt
00:00:04]} 30. c4 {[%clk 00:47:13]} {[%emt 00:00:59]} Kg7 {[%clk 00:18:46]}
{[%emt 00:00:19]} 31. c3 {[%clk 00:47:02]} {[%emt 00:00:41]} Kg6 {[%clk
00:18:45]} {[%emt 00:00:31]} 32. h4 {[%clk 00:42:47]} {[%emt 00:04:44]} Kf5
{[%clk 00:14:05]} {[%emt 00:05:11]} 33. f3 {[%clk 00:41:42]} {[%emt 00:01:35]}
h5 {[%clk 00:12:20]} {[%emt 00:02:15]} 34. Kh3 {[%clk 00:40:15]} {[%emt
00:01:57]} Ke5 {[%emt 00:00:13]} 1/2-1/2

[Event "NJSK 2018 Jeugd C"]
[Site "Assen, Netherlands"]
[Date "2018.05.01"]
[Round "3.8"]
[White "Bleeker, Kasper"]
[Black "Albers, Sasa"]
[Result "1-0"]
[TimeControl "40/90m+30sec/move"]
[WhiteElo "1737"]
[BlackElo "1336"]

1. e4 {[%clk 01:30:58]} c6 {[%clk 01:31:25]} {[%emt 00:00:06]} 2. d4 {[%clk
01:31:25]} {[%emt 00:00:03]} d5 {[%clk 01:31:51]} {[%emt 00:00:05]} 3. exd5
{[%clk 01:31:51]} {[%emt 00:00:04]} cxd5 {[%clk 01:32:18]} {[%emt 00:00:03]} 4.
Bd3 {[%clk 01:32:09]} {[%emt 00:00:12]} Nc6 {[%clk 01:32:26]} {[%emt 00:00:22]}
5. c3 {[%clk 01:32:33]} {[%emt 00:00:06]} Nf6 {[%clk 01:32:32]} {[%emt
00:00:23]} 6. h3 {[%clk 01:32:58]} {[%emt 00:00:05]} e6 {[%clk 01:32:40]}
{[%emt 00:00:22]} 7. Bf4 {[%clk 01:33:00]} {[%emt 00:00:28]} Bd6 {[%clk
01:32:58]} {[%emt 00:00:12]} 8. Bxd6 {[%clk 01:33:22]} {[%emt 00:00:08]} Qxd6
{[%clk 01:33:20]} {[%emt 00:00:07]} 9. Nf3 {[%clk 01:33:34]} {[%emt 00:00:19]}
Bd7 {[%clk 01:33:34]} {[%emt 00:00:16]} 10. O-O {[%clk 01:33:39]} {[%emt
00:00:25]} O-O {[%clk 01:33:41]} {[%emt 00:00:23]} 11. Nbd2 {[%clk 01:33:50]}
{[%emt 00:00:19]} Rac8 {[%clk 01:33:17]} {[%emt 00:00:54]} 12. Re1 {[%clk
01:33:59]} {[%emt 00:00:20]} Rfe8 {[%clk 01:31:33]} {[%emt 00:02:15]} 13. Ne5
{[%clk 01:34:09]} {[%emt 00:00:21]} Qc7 {[%clk 01:30:19]} {[%emt 00:01:44]} 14.
Ndf3 {[%clk 01:34:06]} {[%emt 00:00:32]} h6 {[%clk 01:26:03]} {[%emt 00:04:46]}
15. a3 {[%clk 01:33:30]} {[%emt 00:01:06]} Na5 {[%clk 01:23:48]} {[%emt
00:02:46]} 16. Nh2 {[%clk 01:29:45]} {[%emt 00:04:15]} b5 {[%clk 01:21:51]}
{[%emt 00:02:27]} 17. Nhg4 {[%clk 01:25:27]} {[%emt 00:04:47]} Nxg4 {[%clk
01:19:56]} {[%emt 00:02:24]} 18. Qxg4 {[%clk 01:25:26]} {[%emt 00:00:31]} Nc4
{[%clk 01:14:43]} {[%emt 00:05:44]} 19. Bxc4 {[%clk 01:16:28]} {[%emt
00:09:27]} bxc4 {[%clk 01:14:40]} {[%emt 00:00:33]} 20. Re3 {[%clk 01:16:27]}
{[%emt 00:00:32]} f6 {[%clk 01:09:22]} {[%emt 00:05:48]} 21. Rg3 {[%clk
01:15:59]} {[%emt 00:00:57]} Re7 {[%clk 01:03:06]} {[%emt 00:06:46]} 22. Qh4
{[%clk 01:12:38]} {[%emt 00:03:51]} Kh7 {[%clk 00:49:11]} {[%emt 00:14:25]} 23.
Ng6 {[%clk 01:08:41]} {[%emt 00:04:26]} Rf7 {[%clk 00:49:04]} {[%emt 00:00:37]}
24. Qh5 {[%clk 01:07:32]} {[%emt 00:01:39]} Be8 {[%clk 00:43:58]} {[%emt
00:05:36]} 25. Re1 {[%clk 01:05:16]} {[%emt 00:02:45]} Re7 {[%clk 00:34:24]}
{[%emt 00:10:04]} 26. Nf8 {[%clk 01:02:20]} {[%emt 00:03:27]} Kh8 {[%clk
00:34:45]} {[%emt 00:00:08]} 27. Qh4 {[%clk 00:51:39]} {[%emt 00:11:11]} Bf7
{[%clk 00:30:34]} {[%emt 00:04:40]} 28. Qg4 {[%clk 00:50:51]} {[%emt 00:01:19]}
Bh5 {[%clk 00:30:08]} {[%emt 00:00:56]} 29. Qxh5 {[%clk 00:48:57]} {[%emt
00:02:25]} Rxf8 {[%clk 00:30:13]} {[%emt 00:00:25]} 30. Qg4 {[%clk 00:44:26]}
{[%emt 00:05:01]} f5 {[%clk 00:27:13]} {[%emt 00:03:29]} 31. Qh4 {[%clk
00:44:23]} {[%emt 00:00:33]} Rf6 {[%clk 00:23:45]} {[%emt 00:03:58]} 32. Rge3
{[%clk 00:42:16]} {[%emt 00:02:36]} g5 {[%clk 00:20:18]} {[%emt 00:03:57]} 33.
Qh5 {[%clk 00:42:07]} {[%emt 00:00:39]} Qd7 {[%clk 00:17:55]} {[%emt 00:02:53]}
34. Re5 {[%clk 00:40:48]} {[%emt 00:01:49]} Rg7 {[%clk 00:15:50]} {[%emt
00:02:35]} 35. Qe2 {[%clk 00:35:49]} {[%emt 00:05:29]} Rgg6 {[%clk 00:15:57]}
{[%emt 00:00:24]} 36. Qc2 {[%clk 00:35:07]} {[%emt 00:01:13]} g4 {[%clk
00:15:03]} {[%emt 00:01:24]} 37. h4 {[%clk 00:34:23]} {[%emt 00:01:13]} Rg8
{[%clk 00:05:44]} {[%emt 00:09:49]} 38. Qe2 {[%clk 00:30:45]} {[%emt 00:04:08]}
Re8 {[%clk 00:05:25]} {[%emt 00:00:50]} 39. g3 {[%clk 00:29:07]} {[%emt
00:02:08]} Qb5 {[%clk 00:03:50]} {[%emt 00:02:05]} 40. Qd2 {[%clk 00:27:24]}
{[%emt 00:02:12]} Kg7 {[%clk 00:03:41]} {[%emt 00:00:39]} 41. R5e2 {[%clk
00:25:54]} {[%emt 00:02:00]} Kf7 {[%clk 00:03:48]} {[%emt 00:00:23]} 42. Qf4
{[%clk 00:25:36]} {[%emt 00:00:48]} Qb8 {[%clk 00:04:04]} {[%emt 00:00:15]} 43.
Qd2 {[%clk 00:20:53]} {[%emt 00:05:12]} Qb5 {[%clk 00:04:26]} {[%emt 00:00:08]}
44. Kf1 {[%clk 00:20:52]} {[%emt 00:00:31]} Qb8 {[%clk 00:03:15]} {[%emt
00:01:42]} 45. Re5 {[%clk 00:20:10]} {[%emt 00:01:12]} Re7 {[%clk 00:03:00]}
{[%emt 00:00:44]} 46. R1e2 {[%clk 00:20:08]} {[%emt 00:00:32]} Rb7 {[%clk
00:02:59]} {[%emt 00:00:30]} 47. Qc2 {[%clk 00:16:32]} {[%emt 00:04:06]} Rb3
{[%clk 00:02:40]} {[%emt 00:00:50]} 48. Rxe6 {[%clk 00:15:44]} {[%emt
00:01:18]} Rxe6 {[%clk 00:01:54]} {[%emt 00:01:15]} 49. Qxf5+ {[%clk 00:16:04]}
{[%emt 00:00:10]} Rf6 {[%clk 00:02:05]} {[%emt 00:00:19]} 50. Qh7+ {[%clk
00:16:21]} {[%emt 00:00:13]} 1-0

[Event "NJSK 2018 Jeugd C"]
[Site "Assen, Netherlands"]
[Date "2018.05.01"]
[Round "3.9"]
[White "Roebers, Eline"]
[Black "Labruyere, Roger"]
[Result "0-1"]
[TimeControl "40/90m+30sec/move"]
[WhiteElo "1961"]
[BlackElo "1665"]

1. e4 {[%clk 01:30:58]} {[%emt 00:00:01]} c6 {[%clk 01:30:56]} {[%emt
00:00:05]} 2. d3 {[%clk 01:31:00]} {[%emt 00:00:28]} d5 {[%clk 01:31:22]}
{[%emt 00:00:04]} 3. Nd2 {[%clk 01:31:16]} {[%emt 00:00:14]} e5 {[%clk
01:31:48]} {[%emt 00:00:04]} 4. Ngf3 {[%clk 01:31:04]} {[%emt 00:00:41]} Bd6
{[%clk 01:31:11]} {[%emt 00:01:07]} 5. g3 {[%clk 01:30:45]} {[%emt 00:00:48]}
Nf6 {[%clk 01:31:29]} {[%emt 00:00:12]} 6. Bg2 {[%clk 01:30:44]} {[%emt
00:00:32]} O-O {[%clk 01:31:51]} {[%emt 00:00:08]} 7. O-O {[%clk 01:31:03]}
{[%emt 00:00:11]} Bg4 {[%clk 01:32:07]} {[%emt 00:00:14]} 8. c3 {[%clk
01:29:38]} {[%emt 00:01:55]} Nbd7 {[%clk 01:31:14]} {[%emt 00:01:23]} 9. Qc2
{[%clk 01:28:03]} {[%emt 00:02:05]} Re8 {[%clk 01:28:09]} {[%emt 00:03:34]} 10.
Re1 {[%clk 01:25:41]} {[%emt 00:02:52]} h6 {[%clk 01:19:32]} {[%emt 00:09:08]}
11. Nf1 {[%clk 01:19:57]} {[%emt 00:06:14]} Nc5 {[%clk 01:18:43]} {[%emt
00:01:19]} 12. h3 {[%clk 01:15:20]} {[%emt 00:05:06]} Bh5 {[%clk 01:16:51]}
{[%emt 00:02:21]} 13. g4 {[%clk 01:08:29]} {[%emt 00:07:22]} Bg6 {[%clk
01:17:11]} {[%emt 00:00:10]} 14. Ng3 {[%clk 01:08:39]} {[%emt 00:00:19]} a5
{[%clk 01:11:35]} {[%emt 00:06:06]} 15. Bd2 {[%clk 00:59:52]} {[%emt 00:09:17]}
Qb6 {[%clk 01:11:08]} {[%emt 00:00:57]} 16. Rad1 {[%clk 00:57:28]} {[%emt
00:02:54]} Qa6 {[%clk 01:11:09]} {[%emt 00:00:29]} 17. Bc1 {[%clk 00:56:49]}
{[%emt 00:01:09]} Rad8 {[%clk 01:10:43]} {[%emt 00:00:57]} 18. Nh4 {[%clk
00:52:19]} {[%emt 00:04:59]} Bh7 {[%clk 01:08:56]} {[%emt 00:02:15]} 19. Nhf5
{[%clk 00:47:36]} {[%emt 00:05:15]} Bf8 {[%clk 01:00:27]} {[%emt 00:08:56]} 20.
Bf1 {[%clk 00:41:30]} {[%emt 00:06:39]} Qb6 {[%clk 00:59:20]} {[%emt 00:01:38]}
21. Be3 {[%clk 00:26:24]} {[%emt 00:15:35]} Qc7 {[%clk 00:56:40]} {[%emt
00:03:09]} 22. g5 {[%clk 00:20:28]} {[%emt 00:06:27]} hxg5 {[%clk 00:55:08]}
{[%emt 00:02:01]} 23. Bxg5 {[%clk 00:20:19]} {[%emt 00:00:39]} Be7 {[%clk
00:51:41]} {[%emt 00:03:57]} 24. Qe2 {[%clk 00:13:04]} {[%emt 00:07:46]} Ne6
{[%clk 00:49:25]} {[%emt 00:02:46]} 25. Bxf6 {[%clk 00:10:53]} {[%emt
00:02:40]} Bxf6 {[%clk 00:49:48]} {[%emt 00:00:08]} 26. Nh5 {[%clk 00:09:59]}
{[%emt 00:01:23]} Bg5 {[%clk 00:49:21]} {[%emt 00:00:57]} 27. h4 {[%clk
00:08:03]} {[%emt 00:02:26]} Bxf5 {[%clk 00:43:23]} {[%emt 00:06:28]} 28. exf5
{[%clk 00:06:49]} {[%emt 00:01:44]} Nf4 {[%clk 00:43:47]} {[%emt 00:00:05]} 29.
Qg4 {[%clk 00:04:51]} {[%emt 00:02:29]} Nxh5 {[%clk 00:43:41]} {[%emt
00:00:35]} 30. Qxh5 {[%clk 00:03:19]} {[%emt 00:02:02]} Bf4 {[%clk 00:42:47]}
{[%emt 00:01:22]} 31. Bh3 {[%clk 00:02:29]} {[%emt 00:01:22]} Rd6 {[%clk
00:42:45]} {[%emt 00:00:33]} 32. Kh1 {[%clk 00:01:45]} {[%emt 00:01:13]} Rh6
{[%clk 00:43:14]} {[%emt 00:00:02]} 33. Qg4 {[%clk 00:02:03]} {[%emt 00:00:11]}
Qe7 {[%clk 00:43:27]} {[%emt 00:00:17]} 34. h5 {[%clk 00:01:38]} {[%emt
00:00:55]} Qd7 {[%clk 00:40:04]} {[%emt 00:03:53]} 35. Rg1 {[%clk 00:01:09]}
{[%emt 00:00:59]} f6 {[%clk 00:37:17]} {[%emt 00:03:18]} 36. Qf3 {[%clk
00:01:15]} {[%emt 00:00:24]} Qf7 {[%clk 00:33:13]} {[%emt 00:04:34]} 37. Rg6
{[%clk 00:00:48]} {[%emt 00:00:57]} Bg5 {[%emt 00:01:50]} 38. Rxh6 {[%clk
00:00:46]} Bxh6 {[%clk 00:32:36]} {[%emt 00:00:20]} 39. Re1 {[%clk 00:00:51]}
{[%emt 00:00:26]} e4 {[%clk 00:30:35]} {[%emt 00:02:31]} 40. dxe4 {[%clk
00:00:40]} {[%emt 00:00:41]} dxe4 {[%clk 00:31:01]} {[%emt 00:00:04]} 41. Qg4
{[%clk 00:00:40]} {[%emt 00:00:30]} Qxa2 {[%clk 00:31:05]} {[%emt 00:00:25]} 42.
Bg2 {[%clk 00:00:39]} {[%emt 00:00:31]} Qxb2 {[%clk 00:30:57]} {[%emt
00:00:38]} 43. Rxe4 {[%clk 00:00:39]} {[%emt 00:00:31]} Qc1 {[%clk 00:30:53]}
{[%emt 00:00:33]} 44. Kh2 {[%clk 00:00:55]} {[%emt 00:00:14]} Rxe4 {[%clk
00:31:17]} {[%emt 00:00:06]} 45. Qxe4 {[%clk 00:01:05]} {[%emt 00:00:20]} Qf4
{[%clk 00:31:43]} {[%emt 00:00:05]} 46. Kh3 {[%clk 00:00:42]} {[%emt 00:00:53]}
Qxe4 {[%clk 00:32:04]} {[%emt 00:00:08]} 47. Bxe4 {[%clk 00:01:08]} {[%emt
00:00:04]} Kf7 {[%clk 00:31:44]} {[%emt 00:00:50]} 48. Kg3 {[%clk 00:00:40]}
{[%emt 00:00:58]} Ke7 {[%clk 00:31:54]} {[%emt 00:00:19]} 49. Kf3 {[%clk
00:00:42]} {[%emt 00:00:28]} Kd6 {[%clk 00:32:09]} {[%emt 00:00:15]} 50. Ke2
{[%clk 00:00:37]} {[%emt 00:00:35]} Ke5 {[%clk 00:32:29]} {[%emt 00:00:10]} 51.
Kd3 {[%clk 00:00:54]} {[%emt 00:00:11]} a4 {[%clk 00:32:20]} {[%emt 00:00:40]}
52. f3 {[%clk 00:01:07]} {[%emt 00:00:17]} Bc1 {[%clk 00:31:17]} {[%emt
00:01:33]} 53. Kc2 {[%clk 00:01:17]} {[%emt 00:00:21]} Ba3 {[%clk 00:31:42]}
{[%emt 00:00:05]} 54. Kb1 {[%clk 00:00:55]} {[%emt 00:00:52]} Be7 {[%clk
00:30:05]} {[%emt 00:02:07]} 55. Kc2 {[%clk 00:00:58]} {[%emt 00:00:27]} Kf4
{[%clk 00:28:37]} {[%emt 00:01:57]} 56. Kd3 {[%clk 00:00:40]} {[%emt 00:00:49]}
a3 {[%clk 00:28:47]} {[%emt 00:00:21]} 57. Kc2 {[%clk 00:01:00]} {[%emt
00:00:09]} Ke3 {[%clk 00:29:09]} {[%emt 00:00:08]} 58. Kb3 {[%clk 00:01:03]}
{[%emt 00:00:27]} Bf8 {[%clk 00:28:53]} {[%emt 00:00:47]} 59. Kc2 {[%clk
00:01:13]} {[%emt 00:00:18]} a2 {[%clk 00:26:51]} {[%emt 00:02:33]} 60. Kb2
{[%clk 00:01:31]} {[%emt 00:00:12]} Kd2 {[%clk 00:27:16]} {[%emt 00:00:05]} 61.
c4 {[%clk 00:01:04]} {[%emt 00:00:57]} a1=Q+ {[%clk 00:27:28]} {[%emt
00:00:18]} 62. Kxa1 {[%clk 00:01:29]} {[%emt 00:00:05]} Kc3 {[%clk 00:27:53]}
{[%emt 00:00:06]} 63. Kb1 {[%clk 00:01:31]} {[%emt 00:00:27]} Kxc4 {[%clk
00:28:15]} {[%emt 00:00:08]} 64. Kc2 {[%clk 00:01:38]} {[%emt 00:00:22]} Kc5
{[%clk 00:26:18]} {[%emt 00:02:28]} 65. Kc3 {[%clk 00:01:19]} {[%emt 00:00:48]}
b5 {[%clk 00:26:31]} {[%emt 00:00:17]} 66. Kb3 {[%clk 00:00:39]} {[%emt
00:01:10]} Kb6 {[%clk 00:26:57]} {[%emt 00:00:04]} 67. Kc3 {[%clk 00:00:57]}
{[%emt 00:00:12]} c5 {[%clk 00:27:20]} {[%emt 00:00:07]} 68. Bc2 {[%clk
00:00:42]} {[%emt 00:00:45]} c4 {[%clk 00:27:29]} {[%emt 00:00:21]} 69. Kd4
{[%clk 00:00:45]} {[%emt 00:00:26]} Bc5+ {[%clk 00:27:47]} {[%emt 00:00:14]} 70.
Kc3 {[%clk 00:00:39]} {[%emt 00:00:36]} Be3 {[%clk 00:28:08]} {[%emt 00:00:09]}
71. Bd1 {[%clk 00:00:38]} {[%emt 00:00:30]} Kc5 {[%clk 00:28:34]} {[%emt
00:00:04]} 72. Kc2 {[%clk 00:00:42]} {[%emt 00:00:26]} b4 {[%clk 00:28:58]}
{[%emt 00:00:06]} 73. Be2 {[%clk 00:00:40]} {[%emt 00:00:31]} b3+ {[%clk
00:29:21]} {[%emt 00:00:08]} 74. Kb2 {[%clk 00:00:41]} {[%emt 00:00:29]} Kb4
{[%clk 00:29:44]} {[%emt 00:00:07]} 75. Kb1 {[%clk 00:00:35]} {[%emt 00:00:36]}
c3 {[%clk 00:30:02]} {[%emt 00:00:12]} 76. Bd3 {[%clk 00:00:43]} {[%emt
00:00:22]} c2+ {[%clk 00:30:17]} {[%emt 00:00:15]} 77. Bxc2 {[%clk 00:01:07]}
{[%emt 00:00:06]} bxc2+ {[%clk 00:30:42]} {[%emt 00:00:05]} 78. Kxc2 {[%clk
00:01:32]} {[%emt 00:00:05]} Kc4 {[%clk 00:31:09]} {[%emt 00:00:04]} 79. Kd1
{[%clk 00:01:57]} {[%emt 00:00:06]} Kd5 {[%clk 00:30:58]} {[%emt 00:00:40]} 80.
Ke2 {[%clk 00:02:17]} {[%emt 00:00:10]} Kd4 {[%clk 00:31:02]} {[%emt 00:00:26]}
81. Kf1 {[%clk 00:02:23]} {[%emt 00:00:23]} Ke5 {[%clk 00:31:22]} {[%emt
00:00:11]} 0-1